bitfinex-derivatives/quotes_BTCF0:USTF0_20250904
["timestamp","ask_amount","ask_price","bid_price","bid_amount"]
[1756995417397,0.40201,109950.0,109940.0,1.3056]
[1756995418795,0.40201,109950.0,109940.0,1.3066]
[1756995418995,0.40201,109950.0,109940.0,1.30652]
[1756995419305,0.65201,109950.0,109940.0,0.36634]
[1756995419504,1.01281,109950.0,109940.0,0.00554]
[1756995419696,0.76281,109950.0,109940.0,0.00554]
[1756995419896,1.01281,109950.0,109930.0,0.0002]
[1756995420205,1.08223483,109940.0,109930.0,0.0001]
[1756995420503,0.05201,109930.0,109920.0,0.0002]
[1756995420800,0.05201,109920.0,109910.0,0.0002]
[1756995421004,0.01947,109910.0,109900.0,1.29696]
[1756995421208,0.40201,109910.0,109900.0,0.3608]
[1756995421402,0.40201,109910.0,109900.0,0.3734]
[1756995421794,0.40201,109910.0,109900.0,0.3608]
[1756995422607,0.05201,109900.0,109890.0,0.361]
[1756995422806,0.01947,109890.0,109880.0,1.29672]
[1756995423100,0.29847,109890.0,109880.0,1.29652]
[1756995423494,0.33101,109890.0,109880.0,0.3608]
[1756995423702,0.33101,109890.0,109880.0,1.29648]
[1756995424403,0.33101,109890.0,109880.0,0.3608]
[1756995424709,0.33101,109890.0,109880.0,0.377]
[1756995425309,0.31101,109890.0,109880.0,0.79642483]
[1756995425510,0.0622965,109890.0,109880.0,0.79642483]
[1756995425811,0.3022965,109890.0,109880.0,0.79842483]
[1756995425998,0.3022965,109890.0,109880.0,0.379]
[1756995426808,0.3022965,109890.0,109880.0,1.31448]
[1756995427003,0.3022965,109890.0,109880.0,1.31424]
[1756995427303,0.0112865,109890.0,109880.0,2.07466906]
[1756995427502,0.29947,109890.0,109880.0,2.07466906]
[1756995427703,0.34297485,109890.0,109880.0,1.40520423]
[1756995427909,0.34297485,109890.0,109880.0,0.88942906]
[1756995428110,0.34297485,109890.0,109880.0,1.40516423]
[1756995428310,0.34297485,109890.0,109880.0,1.82458906]
[1756995428497,0.03043485,109890.0,109880.0,1.82458906]
[1756995428703,0.0001,109900.0,109880.0,2.08346906]
[1756995428899,0.11947,109900.0,109890.0,0.375]
[1756995429102,0.05201,109900.0,109890.0,0.375]
[1756995429411,0.37201,109900.0,109890.0,1.2958]
[1756995430111,0.07947,109900.0,109890.0,1.71522483]
[1756995430308,0.06947,109900.0,109890.0,1.71522483]
[1756995430514,0.09079418,109900.0,109890.0,1.71522483]
[1756995430911,0.09079418,109900.0,109890.0,1.71622483]
[1756995431106,0.08079418,109900.0,109890.0,1.2968]
[1756995431307,0.08079418,109900.0,109890.0,1.71622483]
[1756995431506,0.09079418,109900.0,109890.0,1.71622483]
[1756995431712,0.09079418,109900.0,109890.0,1.2968]
[1756995431913,0.09079418,109900.0,109890.0,1.71622483]
[1756995432121,0.06,109900.0,109890.0,1.80722078]
[1756995432309,0.06,109900.0,109890.0,2.54722078]
[1756995432810,0.0001,109910.0,109900.0,0.01203]
[1756995433010,0.05205763,109920.0,109900.0,1.42074163]
[1756995433314,0.02147188,109920.0,109910.0,2.06769333]
[1756995433511,0.02147188,109920.0,109910.0,2.81673483]
[1756995433719,0.02147188,109920.0,109910.0,3.06715552]
[1756995433909,0.02147188,109920.0,109910.0,2.18365905]
[1756995434104,0.02147188,109920.0,109910.0,2.57797905]
[1756995434509,0.29147188,109920.0,109910.0,1.84994515]
[1756995434712,0.02147188,109920.0,109910.0,2.78422515]
[1756995434915,0.34147188,109920.0,109910.0,1.52994515]
[1756995435113,0.02147188,109920.0,109910.0,2.46418515]
[1756995435308,0.02147188,109920.0,109910.0,2.46410515]
[1756995435612,0.02147188,109920.0,109910.0,1.52994515]
[1756995435808,0.02147188,109920.0,109910.0,2.46402515]
[1756995436003,0.31147188,109920.0,109910.0,1.64323836]
[1756995436310,0.33066188,109920.0,109910.0,1.39323836]
[1756995436513,0.04066188,109920.0,109910.0,2.32719836]
[1756995437007,0.29066188,109920.0,109910.0,2.32719836]
[1756995437309,0.04066188,109920.0,109910.0,2.32719836]
[1756995437512,0.02147188,109920.0,109910.0,2.32719836]
[1756995437713,0.02147188,109920.0,109910.0,2.89719836]
[1756995438019,0.02147188,109920.0,109910.0,2.98815706]
[1756995438219,0.0001,109930.0,109910.0,3.12536237]
[1756995438417,0.04942,109940.0,109930.0,0.0113]
[1756995438611,0.32932,109940.0,109930.0,1.72516483]
[1756995438810,0.32932,109940.0,109930.0,1.72508483]
[1756995439318,0.32932,109940.0,109930.0,0.79152483]
[1756995439518,0.04932,109940.0,109930.0,1.72504483]
[1756995439712,0.10932,109940.0,109930.0,1.72504483]
[1756995439908,0.11132,109940.0,109930.0,1.72504483]
[1756995440106,0.12132,109940.0,109930.0,1.72504483]
[1756995440415,0.09119,109940.0,109930.0,1.72504483]
[1756995440620,0.02119,109940.0,109930.0,1.72476483]
[1756995440917,0.33119,109940.0,109930.0,1.72476483]
[1756995441116,0.062,109940.0,109930.0,1.72476483]
[1756995441310,0.065,109940.0,109930.0,1.81572767]
[1756995441510,0.005,109940.0,109930.0,2.15572767]
[1756995441911,0.002,109940.0,109930.0,1.22248767]
[1756995442120,0.004,109940.0,109930.0,2.49654987]
[1756995442423,0.004,109940.0,109930.0,2.40544767]
[1756995442919,0.003,109940.0,109930.0,1.47248767]
[1756995443123,0.003,109940.0,109930.0,2.56855965]
[1756995443325,0.0001,109950.0,109940.0,0.1014939]
[1756995443521,0.0001,109960.0,109940.0,1.71171873]
[1756995443822,0.01929,109970.0,109950.0,1.71948483]
[1756995444125,0.33919,109970.0,109960.0,1.71944483]
[1756995444422,0.33919,109970.0,109960.0,2.37036173]
[1756995444423,0.08133142,109970.0,109960.0,2.37036173]
[1756995444616,0.02144887,109980.0,109960.0,2.27944483]
[1756995444815,0.02144887,109980.0,109970.0,0.78672483]
[1756995444816,0.30134887,109980.0,109970.0,0.78672483]
[1756995446424,0.32053887,109980.0,109970.0,0.78672483]
[1756995447127,0.33161079,109980.0,109970.0,0.78672483]
[1756995447521,0.31242079,109980.0,109970.0,0.87765458]
[1756995447719,0.31542079,109980.0,109970.0,0.87765458]
[1756995448023,0.31642079,109980.0,109970.0,1.80977458]
[1756995448231,0.31642079,109980.0,109970.0,1.90068378]
[1756995448417,0.02534887,109980.0,109970.0,2.75068378]
[1756995448719,0.02534887,109980.0,109970.0,3.00068378]
[1756995449019,0.02434887,109980.0,109970.0,3.00068378]
[1756995449212,0.005,109980.0,109970.0,3.00068378]
[1756995449417,0.005,109980.0,109970.0,3.00301248]
[1756995449818,0.005,109980.0,109970.0,2.64170328]
[1756995450020,0.245,109980.0,109970.0,2.64170328]
[1756995450221,0.01607807,109980.0,109970.0,1.70998328]
[1756995450418,0.03526807,109980.0,109970.0,1.96990975]
[1756995450624,0.005,109980.0,109970.0,2.39166328]
[1756995450918,0.265,109980.0,109970.0,1.03822975]
[1756995451122,0.005,109980.0,109970.0,2.39162328]
[1756995451424,0.265,109980.0,109970.0,2.39150328]
[1756995451929,0.28419,109980.0,109970.0,2.39150328]
[1756995452223,0.005,109980.0,109970.0,2.39146328]
[1756995452432,0.005,109980.0,109970.0,2.48237248]
[1756995452620,0.005,109980.0,109970.0,2.73237248]
[1756995453324,0.00094,109980.0,109970.0,3.05237248]
[1756995453527,0.00094,109980.0,109970.0,3.18819531]
[1756995453829,0.00094,109980.0,109970.0,3.07692611]
[1756995454019,0.61026,109980.0,109970.0,1.49934975]
[1756995454218,0.30022,109980.0,109970.0,0.89905353]
[1756995454426,0.64022,109980.0,109970.0,0.89905353]
[1756995454631,0.64022,109980.0,109970.0,1.83005353]
[1756995455129,0.04932,109970.0,109960.0,1.292]
[1756995455331,0.36932,109970.0,109960.0,1.71355353]
[1756995455522,0.02019,109980.0,109960.0,1.80448328]
[1756995455725,0.38022,109980.0,109970.0,0.78255353]
[1756995455925,0.10022,109980.0,109970.0,0.78255353]
[1756995456127,0.39022,109980.0,109970.0,0.3608]
[1756995456422,0.39022,109980.0,109970.0,1.29156]
[1756995456627,0.63932,109980.0,109970.0,0.3608]
[1756995456822,0.63932,109980.0,109970.0,1.29148]
[1756995457223,0.38932,109980.0,109970.0,1.29148]
[1756995457422,0.02119,109980.0,109970.0,1.71323353]
[1756995458129,0.02119,109980.0,109970.0,1.80416328]
[1756995458533,0.30119,109980.0,109970.0,1.80416328]
[1756995458725,0.02119,109980.0,109970.0,1.80416328]
[1756995459126,0.003,109980.0,109970.0,2.65507258]
[1756995459329,0.003,109980.0,109970.0,2.56416328]
[1756995459527,0.003,109980.0,109970.0,2.14240975]
[1756995459725,0.02079,109980.0,109970.0,2.56372328]
[1756995459930,0.02079,109980.0,109970.0,1.38348328]
[1756995460136,0.02079,109980.0,109970.0,1.02348328]
[1756995460433,0.003,109980.0,109970.0,1.95368328]
[1756995460633,0.003,109980.0,109970.0,2.29368328]
[1756995461231,0.02079,109980.0,109970.0,1.90368328]
[1756995462734,0.02079,109980.0,109970.0,2.17368328]
[1756995463228,0.003,109980.0,109970.0,2.26415258]
[1756995463429,0.003,109980.0,109970.0,2.17324328]
[1756995463637,0.003,109980.0,109970.0,1.75148975]
[1756995463835,0.02079,109980.0,109970.0,1.75148975]
[1756995464035,0.27079,109980.0,109970.0,1.24348328]
[1756995464330,0.05085,109980.0,109970.0,1.83308328]
[1756995464534,0.073,109980.0,109970.0,1.92399258]
[1756995464724,0.003,109980.0,109970.0,2.47399258]
[1756995465129,0.003,109980.0,109970.0,2.72399258]
[1756995465427,0.0001,109990.0,109980.0,0.0909011]
[1756995465632,0.0001,110000.0,109980.0,1.73345463]
[1756995465826,0.01,110000.0,109990.0,1.71195353]
[1756995466031,0.02779,110000.0,109990.0,2.14191353]
[1756995466232,0.03843286,110000.0,109990.0,2.14191353]
[1756995466432,0.02064286,110000.0,109990.0,2.23284328]
[1756995467234,0.01,110000.0,109990.0,2.23284328]
[1756995467537,0.01929,110010.0,109990.0,2.32473608]
[1756995467732,0.18964228,110010.0,110000.0,1.20430706]
[1756995467940,0.18964228,110010.0,110000.0,0.78255353]
[1756995468139,0.17045228,110010.0,110000.0,0.78255353]
[1756995468434,0.16,110010.0,110000.0,1.45346675]
[1756995468634,0.16,110010.0,110000.0,1.87522028]
[1756995469434,0.04785,110030.0,110020.0,0.03217]
[1756995469741,0.24843048,110030.0,110020.0,1.38276353]
[1756995469940,0.24843048,110030.0,110020.0,0.45392353]
[1756995470139,0.24843048,110030.0,110020.0,0.10418625]
[1756995470834,0.25143048,110030.0,110020.0,0.10418625]
[1756995471742,0.25143048,110030.0,110020.0,0.52593978]
[1756995472039,0.25143048,110030.0,110020.0,0.88673978]
[1756995472236,0.25143048,110030.0,110020.0,0.46498625]
[1756995472432,0.25143048,110030.0,110020.0,0.88673978]
[1756995473637,0.50143048,110030.0,110020.0,0.88673978]
[1756995473838,0.50043048,110030.0,110020.0,0.46498625]
[1756995474639,0.50043048,110030.0,110020.0,1.81481978]
[1756995475235,0.25043048,110030.0,110020.0,1.81481978]
[1756995475634,0.22137048,110030.0,110020.0,1.81481978]
[1756995475839,0.25143048,110030.0,110020.0,0.88673978]
[1756995476144,0.25143048,110030.0,110020.0,1.81457978]
[1756995476335,0.25143048,110030.0,110020.0,1.39282625]
[1756995476644,0.25143048,110030.0,110020.0,1.81457978]
[1756995477040,0.24943048,110030.0,110020.0,0.88673978]
[1756995477338,0.24943048,110030.0,110020.0,1.81449978]
[1756995478042,0.24943048,110030.0,110020.0,1.39274625]
[1756995478235,0.24943048,110030.0,110020.0,1.81449978]
[1756995478434,0.21937048,110030.0,110020.0,1.81449978]
[1756995478635,0.24943048,110030.0,110020.0,0.88673978]
[1756995479136,0.24943048,110030.0,110020.0,1.81405978]
[1756995479536,0.24943048,110030.0,110020.0,1.03138625]
[1756995479841,0.24943048,110030.0,110020.0,1.45313978]
[1756995480338,0.49943048,110030.0,110020.0,0.99921625]
[1756995480637,0.49943048,110030.0,110020.0,1.74192353]
[1756995480942,0.49843048,110030.0,110020.0,1.74192353]
[1756995481142,0.24843048,110030.0,110020.0,1.74192353]
[1756995482243,0.24843048,110030.0,110020.0,1.32017]
[1756995482640,0.24843048,110030.0,110010.0,0.361]
[1756995482846,0.04785,110020.0,110010.0,0.81946353]
[1756995483143,0.35785,110020.0,110010.0,1.83691196]
[1756995483337,0.35785,110020.0,110010.0,1.90785872]
[1756995483539,0.38785,110020.0,110010.0,1.90785872]
[1756995483741,0.04785,110020.0,110010.0,1.90785872]
[1756995483934,0.37785,110020.0,110010.0,0.55942519]
[1756995484135,0.37785,110020.0,110010.0,1.39609676]
[1756995484346,0.37785,110020.0,110010.0,0.89229029]
[1756995484535,0.37785,110020.0,110010.0,1.81877029]
[1756995484740,0.37785,110020.0,110010.0,1.39701676]
[1756995485036,0.37785,110020.0,110010.0,1.81877029]
[1756995485246,0.37785,110020.0,110010.0,1.39701676]
[1756995485539,0.62785,110020.0,110010.0,0.53049029]
[1756995485746,0.62785,110020.0,110010.0,1.03521676]
[1756995485947,0.98865,110020.0,110010.0,0.07756676]
[1756995486141,1.41040353,110020.0,110010.0,0.07756676]
[1756995486539,0.98865,110020.0,110010.0,0.07756676]
[1756995487547,0.98865,110020.0,110010.0,0.07656676]
[1756995488140,0.98865,110020.0,110010.0,0.07556676]
[1756995488843,0.98965,110020.0,110010.0,0.07556676]
[1756995490251,1.41140353,110020.0,110010.0,0.07556676]
[1756995491750,2.33704353,110020.0,110010.0,0.07556676]
[1756995491947,1.41140353,110020.0,110010.0,0.07556676]
[1756995492168,2.33700353,110020.0,110010.0,0.07556676]
[1756995492456,2.35782142,110020.0,110010.0,0.07556676]
[1756995493452,0.01822,110010.0,110000.0,0.00016001]
[1756995493654,1.16142353,110010.0,110000.0,6.001e-05]
[1756995494547,2.08674353,110010.0,110000.0,6.001e-05]
[1756995495248,1.66487,110010.0,110000.0,6.001e-05]
[1756995495443,1.66483,110010.0,110000.0,6.001e-05]
[1756995495851,0.73967,110010.0,110000.0,0.45202354]
[1756995496045,0.73967,110010.0,110000.0,0.03027001]
[1756995496548,0.73967,110010.0,110000.0,6.001e-05]
[1756995496854,0.04887,109970.0,109960.0,0.07790831]
[1756995497146,0.04887,109950.0,109940.0,0.44566831]
[1756995497351,0.33887,109950.0,109940.0,0.50025781]
[1756995497547,0.33887,109950.0,109940.0,0.44025781]
[1756995497548,0.04887,109950.0,109940.0,0.44025781]
[1756995497752,0.32887,109950.0,109940.0,0.44025781]
[1756995497942,0.399454,109950.0,109940.0,0.44025781]
[1756995498651,0.82120753,109950.0,109940.0,0.07249781]
[1756995498851,0.82120753,109950.0,109930.0,0.3609]
[1756995499160,0.04887,109940.0,109930.0,0.3602]
[1756995499351,0.39887,109940.0,109930.0,0.3602]
[1756995499847,0.39687,109940.0,109930.0,0.36716]
[1756995500253,0.04687,109940.0,109930.0,0.36716]
[1756995500445,0.34687,109940.0,109930.0,0.36716]
[1756995501151,0.34687,109940.0,109930.0,0.37036]
[1756995501353,0.31687,109940.0,109930.0,0.79311353]
[1756995501548,0.31687,109940.0,109930.0,0.37136]
[1756995502053,0.31687,109940.0,109930.0,0.86701463]
[1756995502250,0.31687,109940.0,109930.0,0.85685463]
[1756995502549,0.31687,109940.0,109930.0,0.86701463]
[1756995502550,0.04687,109940.0,109930.0,0.86701463]
[1756995502752,0.04687,109940.0,109930.0,1.11701463]
[1756995503151,0.34687,109940.0,109930.0,0.6952611]
[1756995503455,0.34687,109940.0,109930.0,0.4906011]
[1756995503656,0.34687,109940.0,109930.0,0.91235463]
[1756995503848,0.34687,109940.0,109930.0,0.92251463]
[1756995504047,0.33687,109940.0,109930.0,1.17251463]
[1756995504851,0.34687,109940.0,109930.0,1.17251463]
[1756995505957,0.34687,109940.0,109930.0,2.09675463]
[1756995506157,0.34687,109940.0,109930.0,0.3804011]
[1756995506358,1.12942353,109940.0,109930.0,0.1304011]
[1756995506558,0.70767,109940.0,109930.0,0.1304011]
[1756995507456,0.34687,109940.0,109930.0,0.92311463]
[1756995507857,0.34687,109940.0,109930.0,1.84723463]
[1756995508356,0.04687,109940.0,109930.0,1.84723463]
[1756995508559,0.10687,109940.0,109930.0,1.84723463]
[1756995508751,0.09687,109940.0,109930.0,1.4254811]
[1756995508955,0.11687,109940.0,109930.0,1.84723463]
[1756995509155,0.10687,109940.0,109930.0,1.84723463]
[1756995509558,0.07622,109940.0,109930.0,2.18819747]
[1756995509762,0.06,109940.0,109930.0,2.18819747]
[1756995511064,0.06,109940.0,109930.0,2.72819747]
[1756995511457,0.06,109940.0,109930.0,2.72575608]
[1756995511658,0.028904,109950.0,109930.0,2.81669898]
[1756995511852,0.059454,109950.0,109940.0,0.79027214]
[1756995512167,0.089454,109950.0,109940.0,1.71395214]
[1756995512462,0.099454,109950.0,109940.0,1.71395214]
[1756995513161,0.409454,109950.0,109940.0,1.71391214]
[1756995513362,0.409454,109950.0,109940.0,0.79027214]
[1756995513566,0.059454,109950.0,109940.0,0.79027214]
[1756995513765,0.359454,109950.0,109940.0,1.71371214]
[1756995513959,0.359454,109950.0,109940.0,1.71351214]
[1756995514357,0.359454,109950.0,109940.0,0.79007214]
[1756995514660,0.359454,109950.0,109940.0,1.71347214]
[1756995515257,0.359454,109950.0,109940.0,1.29408]
[1756995515454,0.359454,109950.0,109940.0,0.37076]
[1756995515660,0.609454,109950.0,109940.0,0.3606]
[1756995516668,0.609454,109950.0,109940.0,0.37076]
[1756995517168,0.129454,109950.0,109940.0,0.79007214]
[1756995517368,0.189454,109950.0,109940.0,0.79007214]
[1756995517562,0.389454,109950.0,109940.0,0.37076]
[1756995517874,0.029804,109950.0,109940.0,0.79007214]
[1756995518065,0.349804,109950.0,109940.0,0.79007214]
[1756995518759,0.380454,109950.0,109940.0,0.79007214]
[1756995518965,0.130454,109950.0,109940.0,0.79007214]
[1756995519468,0.359804,109950.0,109940.0,0.79007214]
[1756995519670,0.391564,109950.0,109940.0,0.3606]
[1756995519864,0.05092,109940.0,109930.0,0.4994711]
[1756995520069,0.37092,109940.0,109930.0,0.4992711]
[1756995520870,0.37092,109940.0,109930.0,0.4902011]
[1756995521366,0.01916,109900.0,109890.0,0.36987]
[1756995521570,0.38092,109900.0,109890.0,1.29239]
[1756995521769,0.05092,109900.0,109890.0,1.80266498]
[1756995521970,0.01916,109910.0,109890.0,1.80266498]
[1756995522181,0.05816,109910.0,109900.0,0.42838214]
[1756995522364,0.04,109910.0,109900.0,0.67838214]
[1756995522665,0.04,109910.0,109900.0,0.76937809]
[1756995523062,0.04,109910.0,109900.0,1.13017809]
[1756995523559,0.38006,109920.0,109900.0,1.13017809]
[1756995523758,0.38006,109920.0,109910.0,1.34171214]
[1756995523759,0.46006,109920.0,109910.0,1.34171214]
[1756995523971,0.45996,109920.0,109910.0,1.34171214]
[1756995524166,0.34916,109920.0,109910.0,1.34171214]
[1756995524469,0.34916,109920.0,109910.0,1.413553]
[1756995524470,0.01916,109920.0,109910.0,1.413553]
[1756995524772,0.08916,109920.0,109910.0,1.413553]
[1756995524969,0.01916,109920.0,109910.0,1.413553]
[1756995525371,0.02,109920.0,109910.0,1.50453239]
[1756995526070,0.02,109920.0,109910.0,2.11533239]
[1756995526273,0.022,109920.0,109910.0,2.11533239]
[1756995526774,0.002,109920.0,109910.0,2.62533239]
[1756995528181,0.001,109920.0,109910.0,2.62533239]
[1756995528368,0.0001,109930.0,109920.0,0.01067]
[1756995528669,0.01,109930.0,109920.0,1.33645214]
[1756995528971,0.02916,109930.0,109920.0,2.34355325]
[1756995529173,0.02916,109930.0,109920.0,1.42175325]
[1756995529372,0.02916,109930.0,109920.0,2.34351325]
[1756995529571,0.01916,109930.0,109920.0,1.42175325]
[1756995529773,0.02916,109930.0,109920.0,1.95347325]
[1756995529973,0.02916,109930.0,109920.0,1.95447325]
[1756995530272,0.29916,109930.0,109920.0,1.03275325]
[1756995530771,0.33092,109930.0,109920.0,0.10264111]
[1756995530968,0.58092,109930.0,109920.0,0.93323]
[1756995531370,0.94172,109930.0,109920.0,0.001]
[1756995531771,0.66172,109930.0,109920.0,0.001]
[1756995532173,0.01916,109920.0,109910.0,1.00239086]
[1756995532370,0.05092,109920.0,109910.0,1.00239086]
[1756995532766,0.05092,109920.0,109910.0,0.08091086]
[1756995532971,0.05092,109920.0,109910.0,1.00239086]
[1756995533576,0.05092,109920.0,109910.0,0.08091086]
[1756995533775,0.05092,109920.0,109910.0,1.00215086]
[1756995533975,0.05092,109920.0,109910.0,1.421463]
[1756995534874,0.05192,109920.0,109910.0,1.421463]
[1756995535069,0.02016,109920.0,109910.0,1.421463]
[1756995535377,0.001,109920.0,109910.0,2.12324239]
[1756995535675,0.001,109920.0,109910.0,2.21420219]
[1756995535875,0.0001,109930.0,109910.0,2.21420219]
[1756995536078,0.0001,109930.0,109920.0,0.79225214]
[1756995536280,0.04014918,109940.0,109920.0,0.79225214]
[1756995536478,0.04014918,109940.0,109930.0,1.34774214]
[1756995536675,0.04004918,109940.0,109930.0,1.34774214]
[1756995537767,0.07180918,109940.0,109930.0,0.00747]
[1756995537971,0.07280918,109940.0,109930.0,0.00747]
[1756995538171,0.07280918,109940.0,109930.0,0.92819]
[1756995538980,0.04104918,109940.0,109930.0,1.34750214]
[1756995539680,0.01916,109930.0,109920.0,0.00747]
[1756995539974,0.05092,109930.0,109920.0,0.92795]
[1756995540679,0.01916,109930.0,109920.0,1.34722214]
[1756995541271,0.02298918,109940.0,109930.0,0.0909433]
[1756995541472,0.02298918,109940.0,109930.0,0.78758214]
[1756995541473,0.02288918,109940.0,109930.0,0.78758214]
[1756995541680,0.02288918,109940.0,109930.0,0.87852544]
[1756995541873,0.002,109940.0,109930.0,1.21949655]
[1756995542067,0.0001,109950.0,109930.0,1.35553087]
[1756995542385,0.0001,109950.0,109940.0,1.70462214]
[1756995542571,0.01926,109960.0,109940.0,1.70462214]
[1756995542771,0.0001,109960.0,109950.0,0.78438214]
[1756995542973,0.01926,109970.0,109950.0,0.78438214]
[1756995543171,0.05102,109970.0,109960.0,0.42358214]
[1756995543479,0.01916,109970.0,109960.0,1.34366214]
[1756995543679,0.02937856,109970.0,109960.0,1.34366214]
[1756995544285,0.06073856,109970.0,109960.0,0.00427]
[1756995544873,0.06073856,109970.0,109960.0,0.42358214]
[1756995545076,0.06373856,109970.0,109960.0,0.42358214]
[1756995545879,0.03197856,109970.0,109960.0,0.78438214]
[1756995546080,0.03197856,109970.0,109960.0,0.36507]
[1756995546381,0.003,109970.0,109960.0,0.78438214]
[1756995546581,0.003,109970.0,109960.0,1.21623866]
[1756995546774,0.0001,109980.0,109970.0,0.00011]
[1756995546974,0.02952107,109990.0,109970.0,0.78022214]
[1756995547174,0.06128107,109990.0,109980.0,1.69970214]
[1756995547384,0.06118107,109990.0,109980.0,0.78022214]
[1756995547682,0.06118107,109990.0,109980.0,1.28031]
[1756995548074,0.06118107,109990.0,109980.0,0.36091]
[1756995548275,0.67298107,109990.0,109980.0,0.99186414]
[1756995548475,0.67298107,109990.0,109980.0,0.07254414]
[1756995548674,0.67298107,109990.0,109980.0,0.00011]
[1756995549076,0.67298107,109990.0,109970.0,1.69945214]
[1756995549283,0.04932,109980.0,109970.0,1.69946214]
[1756995549476,0.04932,109980.0,109970.0,0.78020214]
[1756995549681,0.41012,109980.0,109970.0,9e-05]
[1756995549878,0.66012,109980.0,109970.0,0.91904]
[1756995550078,0.66012,109980.0,109970.0,1.33844214]
[1756995550379,0.62996,109980.0,109970.0,1.33844214]
[1756995550789,0.66012,109980.0,109970.0,9e-05]
[1756995550982,0.66012,109980.0,109970.0,0.91897]
[1756995551381,0.66012,109980.0,109970.0,0.99041543]
[1756995551578,0.66012,109980.0,109970.0,1.40972757]
[1756995552487,0.66012,109980.0,109970.0,0.49092757]
[1756995552678,0.66012,109980.0,109970.0,1.40956757]
[1756995553585,0.66012,109980.0,109970.0,0.49092757]
[1756995553789,0.66012,109980.0,109970.0,1.40952757]
[1756995553987,0.66012,109980.0,109970.0,1.41040757]
[1756995554187,0.66012,109980.0,109970.0,0.99109543]
[1756995554587,0.66012,109980.0,109970.0,0.99096543]
[1756995555095,0.66012,109980.0,109970.0,0.99105543]
[1756995555587,0.41012,109980.0,109970.0,0.07261543]
[1756995555783,0.41012,109980.0,109970.0,0.99081543]
[1756995556591,0.40126471,109990.0,109970.0,2.20276752]
[1756995556893,0.40126471,109990.0,109980.0,0.41931214]
[1756995557091,0.41147839,109990.0,109980.0,0.41931214]
[1756995557290,0.05067839,109990.0,109980.0,0.41931214]
[1756995557796,0.08083839,109990.0,109970.0,1.35162543]
[1756995557990,0.08093839,109990.0,109980.0,0.41931214]
[1756995558188,0.08083839,109990.0,109980.0,0.41931214]
[1756995558386,0.01763,109980.0,109970.0,0.85280757]
[1756995558590,0.04779,109980.0,109970.0,0.43339543]
[1756995558786,0.04779,109980.0,109970.0,1.77050757]
[1756995559192,0.04779,109980.0,109970.0,1.77250757]
[1756995560299,0.04779,109980.0,109970.0,0.43539543]
[1756995560505,0.04779,109980.0,109970.0,1.35295543]
[1756995561206,0.04779,109980.0,109970.0,0.43639543]
[1756995561413,0.04779,109980.0,109970.0,1.77326757]
[1756995562202,0.04779,109980.0,109970.0,1.77401757]
[1756995562408,0.04779,109980.0,109970.0,0.85645757]
[1756995562611,0.04779,109980.0,109970.0,1.77385757]
[1756995563501,0.04779,109980.0,109970.0,1.35454543]
[1756995563811,0.04779,109980.0,109970.0,1.77385757]
[1756995564009,0.07763,109980.0,109970.0,1.77385757]
[1756995564608,0.32763,109980.0,109970.0,1.77385757]
[1756995565109,0.39779,109980.0,109970.0,0.43714543]
[1756995565306,0.10779,109980.0,109970.0,1.77353757]
[1756995565905,0.37779,109980.0,109970.0,1.77353757]
[1756995566109,0.10779,109980.0,109970.0,1.77353757]
[1756995566313,0.07763,109980.0,109970.0,1.77353757]
[1756995566611,0.06763,109980.0,109970.0,1.77353757]
[1756995566808,0.07763,109980.0,109970.0,1.77353757]
[1756995567112,0.08763,109980.0,109970.0,1.86444807]
[1756995567305,0.07,109980.0,109970.0,2.20537782]
[1756995567510,0.07,109980.0,109970.0,2.76537782]
[1756995567716,0.05077839,109990.0,109970.0,2.76537782]
[1756995567906,0.14077839,109990.0,109980.0,0.00107]
[1756995568101,0.18083839,109990.0,109980.0,0.42038214]
[1756995568306,0.40083839,109990.0,109980.0,0.42038214]
[1756995568506,0.17083839,109990.0,109980.0,0.91759]
[1756995568707,0.39083839,109990.0,109980.0,0.91759]
[1756995568909,0.18083839,109990.0,109980.0,0.91759]
[1756995569110,0.17083839,109990.0,109980.0,0.91759]
[1756995569411,0.39083839,109990.0,109980.0,0.91759]
[1756995570212,0.19083839,109990.0,109980.0,0.91959]
[1756995570408,0.40083839,109990.0,109980.0,1.33882214]
[1756995570902,0.19083839,109990.0,109980.0,1.33882214]
[1756995571308,0.40083839,109990.0,109980.0,1.33982214]
[1756995571605,0.01926,110000.0,109980.0,2.13244592]
[1756995571808,0.29926,110000.0,109990.0,0.78118214]
[1756995572008,0.11,110000.0,109990.0,1.14118214]
[1756995572211,0.11,110000.0,109990.0,1.23207614]
[1756995572415,0.01059777,110010.0,110000.0,0.0919558]
[1756995572605,0.01049777,110010.0,110000.0,2.23806794]
[1756995572809,0.04013109,110020.0,110000.0,2.23806794]
[1756995573005,0.25013109,110020.0,110010.0,0.78118214]
[1756995573316,0.25003109,110020.0,110010.0,0.78118214]
[1756995573625,0.28019109,110020.0,110010.0,1.79020269]
[1756995573811,0.28019109,110020.0,110010.0,1.42940269]
[1756995574219,0.29029191,110020.0,110010.0,1.42940269]
[1756995574409,0.29029191,110020.0,110010.0,0.87436269]
[1756995574606,0.29029191,110020.0,110010.0,0.42265774]
[1756995574815,0.54029191,110020.0,110010.0,0.91564]
[1756995575016,0.54029191,110020.0,110000.0,0.78248774]
[1756995575219,0.04879,110010.0,110000.0,0.00117]
[1756995575419,0.71959,110010.0,110000.0,0.9156]
[1756995576020,0.01863,110000.0,109990.0,0.78248774]
[1756995576214,0.04879,110000.0,109990.0,1.69897774]
[1756995576413,0.28879,110000.0,109990.0,1.69897774]
[1756995577023,0.04879,110000.0,109990.0,1.69897774]
[1756995577424,0.04879,110000.0,109990.0,1.70097774]
[1756995577626,0.31879,110000.0,109990.0,1.70097774]
[1756995577917,0.04879,110000.0,109990.0,1.70097774]
[1756995578226,0.01863,110000.0,109990.0,1.70097774]
[1756995578722,0.01863,110000.0,109990.0,2.25097774]
[1756995578915,0.37953,110010.0,109990.0,2.34289096]
[1756995579116,0.67953,110010.0,110000.0,0.00107]
[1756995579321,0.70959,110010.0,110000.0,0.42265774]
[1756995579518,0.40959,110010.0,110000.0,0.42265774]
[1756995579719,0.69959,110010.0,110000.0,0.42265774]
[1756995579925,0.40959,110010.0,110000.0,0.42265774]
[1756995580317,0.69959,110010.0,110000.0,0.42265774]
[1756995580828,0.70959,110010.0,110000.0,0.42265774]